bitfinex-derivatives/quotes_BTCF0:USTF0_20260127
["timestamp","ask_amount","ask_price","bid_price","bid_amount"]
[1769494225896,0.11246861,88580.0,88567.0,0.011304]
[1769494226788,0.11246861,88580.0,88566.0,0.10176]
[1769494227597,0.11033628,88578.0,88566.0,0.10176]
[1769494227794,0.11033628,88576.0,88561.0,0.011305]
[1769494227996,0.11033628,88576.0,88562.0,0.10176]
[1769494228495,0.11033628,88574.0,88562.0,0.10176]
[1769494230402,0.11033628,88574.0,88563.0,0.011305]
[1769494230715,0.11033628,88574.0,88565.0,0.011305]
[1769494234605,0.11033628,88574.0,88564.0,0.10176]
[1769494236806,0.11033628,88574.0,88564.0,0.113065]
[1769494238011,0.11033628,88574.0,88566.0,0.011305]
[1769494238210,0.11033628,88574.0,88564.0,0.10176]
[1769494239415,0.11033628,88574.0,88567.0,0.011304]
[1769494240413,0.11033628,88574.0,88569.0,0.011304]
[1769494240808,0.11033628,88583.0,88569.0,0.011304]
[1769494241113,0.11033628,88583.0,88571.0,0.011304]
[1769494241710,0.11033628,88583.0,88568.0,0.011304]
[1769494242210,0.11033628,88583.0,88570.0,0.011304]
[1769494244416,0.11033628,88583.0,88567.0,0.011304]
[1769494244715,0.11033628,88583.0,88570.0,0.011304]
[1769494246815,0.11033628,88583.0,88564.0,0.10176]
[1769494247218,0.11033628,88583.0,88568.0,0.011304]
[1769494247813,0.11033628,88580.0,88565.0,0.011305]
[1769494248020,0.11033628,88580.0,88567.0,0.011304]
[1769494248317,0.11033628,88580.0,88564.0,0.113065]
[1769494248816,0.11033628,88580.0,88566.0,0.011305]
[1769494249215,0.11033628,88580.0,88564.0,0.10176]
[1769494249411,0.11033628,88580.0,88567.0,0.011304]
[1769494249614,0.12163928,88580.0,88565.0,0.011305]
[1769494249814,0.12163928,88580.0,88564.0,0.10176]
[1769494250517,0.10176,88587.0,88562.0,0.10176]
[1769494250518,0.11033628,88576.0,88562.0,0.10176]
[1769494251222,0.11033628,88576.0,88563.0,0.011305]
[1769494254323,0.10919378,88574.0,88562.0,0.10176]
[1769494255221,0.12049778,88574.0,88559.0,0.011305]
[1769494255422,0.10919378,88574.0,88559.0,0.113065]
[1769494258325,0.10919378,88572.0,88559.0,0.10176]
[1769494258622,0.10919378,88572.0,88559.0,0.113065]
[1769494259020,0.10919378,88572.0,88561.0,0.011305]
[1769494262024,0.10919378,88572.0,88559.0,0.10176]
[1769494263323,0.10919378,88572.0,88560.0,0.011305]
[1769494265527,0.10919378,88572.0,88560.0,0.16302652]
[1769494268531,0.12049578,88587.0,88561.0,0.10986619]
[1769494268734,0.10919378,88583.0,88570.0,0.16302652]
[1769494269128,0.10919378,88583.0,88567.0,0.011304]
[1769494269730,0.12049678,88583.0,88564.0,0.12117119]
[1769494269924,0.011304,88573.0,88559.0,0.0904065]
[1769494270131,0.10919378,88572.0,88560.0,0.5922]
[1769494270841,0.10919378,88572.0,88559.0,0.011305]
[1769494272737,0.10919378,88572.0,88553.0,0.13541473]
[1769494272738,0.10919378,88566.0,88548.0,0.13654406]
[1769494272937,0.12049978,88559.0,88543.0,0.10176]
[1769494273131,0.12049978,88559.0,88541.0,0.011308]
[1769494279150,0.011306,88557.0,88541.0,0.011308]
[1769494279347,0.07598724,88556.0,88540.0,0.10176]
[1769494279846,0.011306,88555.0,88540.0,0.10176]
[1769494280052,0.07569973,88552.0,88540.0,0.10176]
[1769494286953,0.07537494,88543.0,88526.0,0.01131]
[1769494287148,0.07537494,88539.0,88526.0,0.01131]
[1769494287757,0.07537494,88539.0,88527.0,0.00652761]
[1769494287950,0.06859167,88537.0,88520.0,0.10176]
[1769494288347,0.06859167,88535.0,88520.0,0.11307]
[1769494292566,0.06859167,88535.0,88525.0,0.01131]
[1769494292760,6.7e-07,88535.0,88521.0,0.10853365]
[1769494292966,0.10176,88543.0,88526.0,0.12]
[1769494294364,0.10176,88543.0,88531.0,0.011309]
[1769494297568,0.10176,88543.0,88534.0,0.011309]
[1769494298965,0.10176,88543.0,88531.0,0.12]
[1769494304974,0.0013,88548.0,88535.0,0.12]
[1769494307070,0.012607,88548.0,88535.0,0.12]
[1769494313590,0.0013,88548.0,88535.0,0.12]
[1769494314585,0.0013,88548.0,88537.0,0.12]
[1769494329312,0.012607,88548.0,88537.0,0.12]
[1769494333213,0.0013,88548.0,88537.0,0.12]
[1769494333415,0.011307,88547.0,88537.0,0.12]
[1769494333615,0.011307,88545.0,88537.0,0.12]
[1769494333916,0.11384642,88544.0,88524.0,0.01131]
[1769494334112,0.11384642,88542.0,88524.0,0.01131]
[1769494334418,0.11384642,88542.0,88523.0,0.1018]
[1769494335405,0.011308,88538.0,88523.0,0.1018]
[1769494336014,0.011308,88538.0,88524.0,0.11840426]
[1769494336714,0.011309,88536.0,88524.0,0.11840426]
[1769494336910,0.011309,88536.0,88523.0,0.1018]
[1769494336911,0.11384642,88537.0,88517.0,0.11840426]
[1769494337111,0.11384642,88537.0,88517.0,0.20891117]
[1769494337317,0.11384642,88533.0,88517.0,0.11840426]
[1769494339921,0.11384642,88533.0,88517.0,0.12971526]
[1769494340222,0.495069,88534.0,88517.0,0.12971526]
[1769494342023,0.0013,88548.0,88519.0,0.11145687]
[1769494342024,0.11530735,88542.0,88519.0,0.11145687]
[1769494342224,0.29788,88543.0,88529.0,0.11145687]
[1769494343017,0.0013,88548.0,88522.0,0.1018]
[1769494343018,0.0013,88548.0,88533.0,0.11950273]
[1769494343218,0.48622,88548.0,88533.0,0.11950273]
[1769494345018,0.011307,88547.0,88533.0,0.11950273]
[1769494347423,0.011307,88544.0,88533.0,0.11950273]
[1769494347628,0.011307,88547.0,88533.0,0.11950273]
[1769494349831,0.48622,88548.0,88533.0,0.11950273]
[1769494351332,0.011307,88547.0,88533.0,0.11950273]
[1769494351920,0.10865014,88547.0,88528.0,0.11950273]
[1769494352325,0.011308,88540.0,88528.0,0.11950273]
[1769494354425,0.011308,88543.0,88528.0,0.11950273]
[1769494358338,0.011308,88541.0,88528.0,0.11950273]
[1769494359040,0.11995814,88544.0,88528.0,0.11950273]
[1769494359736,0.11995814,88544.0,88530.0,0.11950273]
[1769494361338,0.10865014,88544.0,88531.0,0.13081173]
[1769494361533,0.58393975,88548.0,88534.0,0.11950273]
[1769494362433,0.011307,88547.0,88534.0,0.11950273]
[1769494363836,0.113107,88547.0,88534.0,0.11950273]
[1769494365230,0.1018,88547.0,88534.0,0.11950273]
[1769494368142,0.11070534,88545.0,88526.0,0.11950273]
[1769494368340,0.09939834,88542.0,88526.0,0.13081273]
[1769494370145,0.11070634,88542.0,88526.0,0.13081273]
[1769494370944,0.09939834,88542.0,88528.0,0.011309]
[1769494371142,0.09939834,88542.0,88529.0,0.11950273]
[1769494371442,0.1018,88547.0,88531.0,0.11950273]
[1769494371943,0.011307,88546.0,88532.0,0.011309]
[1769494372144,0.011307,88546.0,88533.0,0.11950273]
[1769494375841,0.1018,88547.0,88533.0,0.11950273]
[1769494376037,0.1018,88547.0,88533.0,0.13081173]
[1769494376237,0.1018,88547.0,88536.0,0.011308]
[1769494376948,0.1018,88547.0,88533.0,0.13081173]
[1769494380250,0.1018,88547.0,88535.0,0.011309]
[1769494380849,0.1018,88547.0,88535.0,0.12474825]
[1769494382149,0.1018,88547.0,88537.0,0.011308]
[1769494382940,0.1018,88547.0,88535.0,0.11343925]
[1769494386652,0.1018,88547.0,88536.0,0.12474725]
[1769494388051,0.1018,88547.0,88536.0,0.11343925]
[1769494390946,0.1018,88547.0,88536.0,0.00649506]
[1769494395058,0.011307,88546.0,88536.0,0.00649506]
[1769494397460,0.011307,88546.0,88531.0,0.11343925]
[1769494399951,0.011307,88544.0,88531.0,0.11343925]
[1769494400252,0.011308,88542.0,88531.0,0.11343925]
[1769494404864,0.11015059,88546.0,88531.0,0.11343925]
[1769494406159,0.11015059,88546.0,88526.0,0.11418618]
[1769494406461,0.11550367,88542.0,88526.0,0.11418618]
[1769494408066,0.011308,88541.0,88526.0,0.11418618]
[1769494410566,0.11550367,88542.0,88528.0,0.11418618]
[1769494411263,0.11550367,88542.0,88530.0,0.11418618]
[1769494411469,0.11550367,88546.0,88531.0,0.12549518]
[1769494413669,0.11550367,88546.0,88533.0,0.011309]
[1769494414869,0.1018,88545.0,88533.0,0.011309]
[1769494417671,0.21730367,88545.0,88532.0,0.011309]
[1769494419377,0.21730367,88545.0,88531.0,0.11418618]
[1769494426885,0.21730367,88545.0,88531.0,0.12549518]
[1769494428191,0.21730367,88545.0,88534.0,0.011309]
[1769494428388,0.21730367,88545.0,88536.0,0.011308]
[1769494428788,0.21730367,88545.0,88533.0,0.011309]
[1769494430893,0.21730367,88545.0,88531.0,0.11418618]
[1769494432292,0.1018,88545.0,88531.0,0.12549518]
[1769494434591,0.1018,88545.0,88531.0,0.11418618]
[1769494434792,0.1018,88545.0,88532.0,0.1080953]
[1769494440588,0.0013,88548.0,88532.0,0.1080953]
[1769494440896,0.209705,88567.0,88541.0,0.1080953]
[1769494440897,0.00652714,88555.0,88541.0,0.1080953]
[1769494441097,0.58928,88558.0,88544.0,0.011307]
[1769494441494,0.00652645,88557.0,88544.0,0.011307]
[1769494441894,0.58928,88558.0,88544.0,0.011307]
[1769494442095,0.00652645,88557.0,88544.0,0.011307]
[1769494442594,0.58928,88558.0,88544.0,0.011307]
[1769494442800,0.00652645,88557.0,88541.0,0.011308]
[1769494442999,0.00652645,88557.0,88544.0,0.1080953]
[1769494443294,0.58928,88558.0,88544.0,0.1080953]
[1769494443295,0.600586,88558.0,88544.0,0.1080953]
[1769494443500,0.00652631,88557.0,88544.0,0.1080953]
[1769494443901,0.58928,88558.0,88544.0,0.1080953]
[1769494444092,0.00652631,88557.0,88544.0,0.1080953]
[1769494444493,0.58928,88558.0,88544.0,0.1080953]
[1769494444696,0.00652631,88557.0,88544.0,0.1080953]
[1769494445202,0.58928,88558.0,88544.0,0.1080953]
[1769494445502,0.00652631,88557.0,88544.0,0.1080953]
[1769494445897,0.58928,88558.0,88544.0,0.1080953]
[1769494447197,0.58928,88558.0,88545.0,0.011307]
[1769494447501,0.58928,88558.0,88546.0,0.1080953]
[1769494447902,0.00652619,88557.0,88546.0,0.1080953]
[1769494448906,0.58928,88558.0,88546.0,0.1080953]
[1769494449202,0.00652619,88557.0,88546.0,0.1080953]
[1769494449605,0.58928,88558.0,88546.0,0.1080953]
[1769494449805,0.00652619,88557.0,88546.0,0.1080953]
[1769494450195,0.58928,88558.0,88546.0,0.1080953]
[1769494450397,0.00652619,88557.0,88546.0,0.1080953]
[1769494450804,0.58928,88558.0,88546.0,0.1080953]
[1769494451105,0.00652619,88557.0,88546.0,0.1080953]
[1769494451600,0.58928,88558.0,88546.0,0.1080953]
[1769494451906,0.00652619,88557.0,88546.0,0.1080953]
[1769494452296,0.58928,88558.0,88546.0,0.1080953]
[1769494452600,0.58928,88558.0,88533.0,0.1018]
[1769494452601,0.1984,88567.0,88555.0,0.1080953]
[1769494452803,0.1984,88567.0,88540.0,0.011308]
[1769494452804,0.1984,88567.0,88557.0,0.1080953]
[1769494456605,0.5166,88570.0,88557.0,0.1080953]
[1769494456606,0.5166,88570.0,88557.0,0.1194013]
[1769494458306,0.5166,88570.0,88557.0,0.1080953]
[1769494459205,0.11264905,88566.0,88553.0,0.1080953]
[1769494459410,0.11264905,88566.0,88550.0,0.011307]
[1769494459604,0.11264905,88566.0,88550.0,0.1194023]
[1769494461107,0.11264905,88566.0,88552.0,0.1300639]
[1769494461407,0.11264905,88566.0,88552.0,0.1187579]
[1769494461610,0.11264905,88566.0,88550.0,0.011307]
[1769494462008,0.11264905,88566.0,88550.0,0.1300649]
[1769494462404,0.11264905,88566.0,88550.0,0.1187579]
[1769494463916,0.11547646,88564.0,88547.0,0.011307]
[1769494464504,0.11547646,88562.0,88547.0,0.12724526]
[1769494464822,0.11547646,88562.0,88550.0,0.011307]
[1769494466105,0.11547646,88562.0,88547.0,0.12724526]
[1769494468514,0.11547646,88562.0,88549.0,0.011307]
[1769494468820,0.11547646,88562.0,88551.0,0.011306]
[1769494469612,0.11547646,88562.0,88548.0,0.12724526]
[1769494470420,0.11547646,88562.0,88548.0,0.11593826]
[1769494470820,0.11547646,88562.0,88549.0,0.011307]
[1769494472825,0.11547646,88562.0,88548.0,0.12724526]
[1769494474726,0.11547646,88562.0,88548.0,0.11593826]
[1769494476921,0.11547646,88562.0,88549.0,0.011307]
[1769494478525,0.11547646,88562.0,88548.0,0.11593826]
[1769494480020,0.10176,88565.0,88550.0,0.11593826]
[1769494480221,0.10176,88565.0,88553.0,0.12724426]
[1769494480420,0.21723646,88565.0,88553.0,0.12724426]
[1769494480829,0.21723646,88565.0,88553.0,0.11593826]
[1769494481129,0.11547646,88564.0,88547.0,0.11593826]
[1769494481432,0.11547646,88564.0,88548.0,0.12724526]
[1769494482426,0.12678146,88564.0,88548.0,0.12724526]
[1769494486836,0.12678146,88564.0,88548.0,0.11593826]
[1769494488541,0.12678146,88564.0,88544.0,0.10176]
[1769494488542,0.11547646,88564.0,88549.0,0.11593826]
[1769494489440,0.10176,88565.0,88549.0,0.11593826]
[1769494489441,0.12678146,88563.0,88549.0,0.11593826]
[1769494490542,0.11547646,88563.0,88551.0,0.011306]
[1769494490839,0.10176,88565.0,88551.0,0.12724426]
[1769494496946,0.011305,88564.0,88551.0,0.11593826]
[1769494497245,0.12718878,88564.0,88551.0,0.11593826]
[1769494500345,0.11588378,88564.0,88551.0,0.11593826]
[1769494500648,0.011305,88563.0,88551.0,0.11593826]
[1769494500940,0.11588378,88561.0,88546.0,0.11588449]
[1769494501144,0.11588378,88561.0,88547.0,0.12719149]
[1769494502746,0.11588378,88561.0,88549.0,0.011307]
[1769494502951,0.10176,88565.0,88551.0,0.12719049]
[1769494503151,0.21764378,88565.0,88551.0,0.12719049]
[1769494503546,0.11588378,88564.0,88551.0,0.12719049]
[1769494505447,0.11588378,88564.0,88551.0,0.11588449]
[1769494509660,0.11588378,88564.0,88551.0,0.12719049]
[1769494515962,0.11588378,88564.0,88551.0,0.11588449]
[1769494516760,0.11588378,88564.0,88548.0,0.011307]
[1769494517058,0.11588378,88564.0,88548.0,0.12719149]
[1769494518455,0.11588378,88564.0,88550.0,0.011307]
[1769494525665,0.12718878,88564.0,88549.0,0.011307]
[1769494526064,0.11588378,88564.0,88549.0,0.011307]
[1769494534073,0.1191198,88562.0,88549.0,0.011307]
[1769494537577,0.1191198,88562.0,88547.0,0.10176]
[1769494537776,0.1191198,88560.0,88545.0,0.10180127]
[1769494537984,0.1191198,88560.0,88547.0,0.10176]
[1769494541584,0.1191198,88560.0,88545.0,0.113067]
[1769494546690,0.1191198,88560.0,88548.0,0.011307]
[1769494552895,0.1191198,88560.0,88553.0,0.011306]
[1769494553095,0.1191198,88560.0,88550.0,0.16308533]
[1769494553294,0.1191198,88560.0,88551.0,0.011307]
[1769494555591,0.1191198,88560.0,88550.0,0.16308533]
[1769494556097,0.1191198,88560.0,88548.0,0.011307]
[1769494556698,0.1191198,88560.0,88550.0,0.011307]
[1769494557198,0.1191198,88560.0,88547.0,0.011307]
[1769494557596,0.1191198,88560.0,88545.0,0.19225023]
[1769494557998,0.1191198,88560.0,88545.0,0.10176]
[1769494558402,0.1191198,88560.0,88546.0,0.011307]
[1769494558803,0.11584891,88559.0,88541.0,0.72546141]
[1769494559599,0.11584891,88559.0,88541.0,0.58972]
[1769494560403,0.11584891,88559.0,88547.0,0.011307]
[1769494563697,9.1e-07,88559.0,88543.0,0.10878585]
[1769494564004,0.0013,88568.0,88558.0,0.011306]
[1769494564204,0.10176,88572.0,88558.0,0.011306]
[1769494564497,0.011304,88570.0,88552.0,0.10878585]
[1769494565012,0.16308533,88570.0,88548.0,0.011307]
[1769494565810,0.011305,88562.0,88545.0,0.011307]
[1769494566203,0.11584891,88561.0,88545.0,0.011307]
[1769494566410,0.11584891,88561.0,88548.0,0.00112933]
[1769494567208,0.11584891,88554.0,88537.0,0.10176]
[1769494567405,0.11584891,88552.0,88538.0,0.01783433]
[1769494572206,0.11584891,88552.0,88540.0,0.011308]
[1769494572407,0.11584891,88552.0,88541.0,0.10878585]
[1769494573109,0.11584891,88552.0,88540.0,0.011308]
[1769494579022,0.11584891,88552.0,88540.0,0.12009385]
[1769494580312,0.11584891,88552.0,88540.0,0.011308]
[1769494584621,0.11584891,88552.0,88538.0,0.00652673]
[1769494584822,0.11584891,88552.0,88537.0,0.10176]
[1769494585026,0.11584891,88552.0,88538.0,0.00652651]
[1769494585329,0.11584891,88552.0,88542.0,0.011308]
[1769494608452,0.11584891,88552.0,88540.0,0.011308]
[1769494609356,0.12715491,88552.0,88537.0,0.14704941]
[1769494609546,0.12715491,88552.0,88538.0,0.13574141]
[1769494612253,0.12715491,88552.0,88537.0,0.13574141]
[1769494612849,0.12715491,88552.0,88536.0,0.13574141]
[1769494613364,0.12715491,88552.0,88535.0,0.62530141]
[1769494613964,0.12715491,88552.0,88535.0,0.48956]
[1769494615964,0.11716596,88549.0,88535.0,0.48956]
[1769494617260,0.11716596,88549.0,88536.0,0.011308]
[1769494618773,0.11716596,88549.0,88536.0,0.10178083]
[1769494619267,0.11716596,88549.0,88536.0,0.09047283]
[1769494620266,0.11716596,88549.0,88536.0,0.10178083]
[1769494620565,0.11716596,88549.0,88538.0,0.011308]
[1769494621873,0.11716596,88549.0,88536.0,0.09047283]
[1769494622266,0.11716596,88549.0,88536.0,0.10178083]
[1769494623771,0.11716596,88549.0,88537.0,0.09047283]
[1769494624272,0.11716596,88549.0,88538.0,0.011308]
[1769494625066,0.11716596,88549.0,88540.0,0.011308]
[1769494625975,0.11716596,88549.0,88537.0,0.011308]
[1769494627977,0.11716596,88549.0,88535.0,0.68178585]
[1769494631079,0.11716596,88549.0,88536.0,0.011308]
[1769494634782,0.11716596,88549.0,88537.0,0.09046585]
[1769494641082,0.11716596,88549.0,88537.0,0.10177385]
[1769494642187,0.11716596,88549.0,88538.0,0.09046585]
[1769494648793,0.11252539,88547.0,88538.0,0.09046585]
[1769494658997,0.11252539,88547.0,88538.0,0.09050434]
[1769494662399,0.11252539,88547.0,88537.0,0.09050434]
[1769494663903,0.11252539,88547.0,88536.0,0.09050434]
[1769494666306,0.11252539,88547.0,88535.0,0.68182434]
[1769494667606,0.11252539,88547.0,88535.0,0.79718183]
[1769494669009,0.11252539,88547.0,88536.0,0.11535749]
[1769494673913,0.11252539,88547.0,88537.0,0.09050434]
[1769494680920,0.11252539,88547.0,88536.0,0.11535749]
[1769494680921,0.12383239,88547.0,88536.0,0.09050434]
[1769494681114,0.12383239,88547.0,88535.0,0.68182434]
[1769494682013,0.011307,88545.0,88535.0,0.68182434]
[1769494682213,0.12875784,88541.0,88536.0,0.43412]
[1769494682419,0.12875784,88539.0,88532.0,0.65588]
[1769494682822,0.12875884,88533.0,88528.0,0.0740765]
[1769494683119,0.011307,88547.0,88519.0,0.28876509]
[1769494683120,0.11744984,88531.0,88522.0,0.55452]
[1769494683516,0.11744984,88529.0,88522.0,0.55452]
[1769494691924,0.12875884,88532.0,88522.0,0.55452]
[1769494694724,0.12875884,88532.0,88519.0,0.22084832]
[1769494694924,0.12875884,88532.0,88520.0,0.09815965]
[1769494696525,0.011309,88530.0,88520.0,0.09815965]
[1769494698325,0.01131,88528.0,88520.0,0.09815965]
[1769494699124,0.01131,88525.0,88520.0,0.09815965]
[1769494699522,0.01131,88528.0,88520.0,0.09815965]
[1769494701026,0.01131,88526.0,88520.0,0.09815965]
[1769494702024,0.11744984,88529.0,88520.0,0.09815965]
[1769494702526,0.011309,88530.0,88520.0,0.09815965]
[1769494702827,0.12580397,88533.0,88520.0,0.21094443]
[1769494703128,0.12580397,88533.0,88521.0,0.11278478]
[1769494703329,0.011309,88531.0,88521.0,0.11278478]
[1769494704031,0.11449497,88533.0,88521.0,0.11278478]
[1769494705030,0.11449497,88537.0,88523.0,0.11278478]
[1769494705329,0.11449497,88537.0,88526.0,0.01131]
[1769494707236,0.1018,88536.0,88526.0,0.01131]
[1769494709834,0.1018,88536.0,88523.0,0.12409478]
[1769494710023,0.1018,88536.0,88524.0,0.09815965]
[1769494710734,0.1018,88536.0,88523.0,0.12409478]
[1769494710936,0.1018,88536.0,88524.0,0.09815965]
[1769494714136,0.1018,88536.0,88524.0,0.09815965]
[1769494717739,0.113109,88536.0,88524.0,0.09815965]
[1769494718439,0.113109,88536.0,88523.0,0.11278478]
[1769494718640,0.113109,88536.0,88524.0,0.09815965]
[1769494718835,0.011309,88534.0,88524.0,0.09815965]
[1769494719441,0.1018,88536.0,88524.0,0.09815965]
[1769494719642,0.1018,88536.0,88523.0,0.11278478]
[1769494719842,0.1018,88536.0,88524.0,0.09815965]
[1769494722449,0.1018,88536.0,88525.0,0.11278478]
[1769494723250,0.011309,88535.0,88525.0,0.11278478]
[1769494724850,0.1018,88536.0,88525.0,0.11278478]
[1769494725346,0.113109,88536.0,88525.0,0.11278478]
[1769494727351,0.1018,88536.0,88525.0,0.11278478]
[1769494727539,0.113108,88536.0,88525.0,0.11278478]
[1769494731148,0.11449497,88547.0,88525.0,0.11278478]
[1769494731354,0.011308,88542.0,88528.0,0.11278478]
[1769494732450,0.011307,88545.0,88528.0,0.11278478]
[1769494732649,0.011307,88545.0,88530.0,0.11548031]
[1769494735956,0.011308,88543.0,88530.0,0.11548031]
[1769494738457,0.560267,88546.0,88530.0,0.11548031]
[1769494742452,0.0013,88548.0,88532.0,0.11548031]
[1769494742753,0.642347,88547.0,88532.0,0.11548031]
[1769494742951,0.642347,88547.0,88534.0,0.11548031]
[1769494743759,0.63104,88547.0,88534.0,0.11548031]
[1769494744055,0.1018,88552.0,88536.0,0.11548031]
[1769494744352,0.52968,88551.0,88536.0,0.11548031]
[1769494745359,0.52968,88551.0,88536.0,0.12678831]
[1769494749166,0.10819491,88550.0,88537.0,0.09815965]
[1769494749560,0.10819491,88550.0,88536.0,0.11548031]
[1769494749760,0.11950191,88549.0,88537.0,0.09815965]
[1769494753968,0.10819491,88549.0,88537.0,0.09815965]
[1769494754276,0.10819491,88549.0,88537.0,0.21363996]
[1769494757773,0.011307,88548.0,88537.0,0.21363996]
[1769494759274,0.011307,88546.0,88537.0,0.21363996]
[1769494760775,0.11950191,88549.0,88537.0,0.21363996]
[1769494762779,0.011307,88547.0,88537.0,0.21363996]
[1769494764079,0.011307,88544.0,88537.0,0.21363996]
[1769494768694,0.011307,88544.0,88538.0,0.10966154]
[1769494771188,0.52968,88551.0,88538.0,0.10966154]
[1769494771189,0.011307,88547.0,88538.0,0.10966154]
[1769494771494,0.011307,88547.0,88539.0,0.20782119]
[1769494771684,0.011307,88547.0,88539.0,0.10966154]
[1769494775392,0.2261072,88564.0,88541.0,0.10966154]
[1769494775590,0.011305,88562.0,88551.0,0.10966154]
[1769494776288,0.011306,88560.0,88551.0,0.10966154]
[1769494776594,0.011306,88560.0,88552.0,0.09815965]
[1769494778501,0.011306,88560.0,88551.0,0.10966154]
[1769494778696,0.011306,88560.0,88552.0,0.09815965]
[1769494779393,0.011306,88560.0,88552.0,0.20782119]
[1769494779698,0.011306,88560.0,88552.0,0.10966154]
[1769494779898,0.011306,88558.0,88552.0,0.10966154]
[1769494780098,0.011306,88558.0,88553.0,0.09815965]
[1769494780399,0.011306,88558.0,88553.0,6.5e-07]
[1769494781497,0.011306,88556.0,88552.0,1.9e-07]
[1769494781700,0.11655449,88561.0,88540.0,0.1631401]
[1769494782097,0.11655449,88561.0,88531.0,0.19223238]
[1769494782098,0.011307,88545.0,88531.0,0.09043238]
[1769494782299,0.011308,88543.0,88531.0,0.10176]
[1769494782497,0.011307,88546.0,88531.0,0.10176]
[1769494783496,0.011307,88546.0,88532.0,0.10966154]
[1769494790907,0.1744471,88550.0,88532.0,0.10966154]
[1769494791108,0.011307,88550.0,88532.0,0.10966154]
[1769494791816,0.011307,88548.0,88532.0,0.10966154]
[1769494792110,0.011307,88548.0,88532.0,0.12097054]
[1769494801426,0.11655449,88551.0,88536.0,0.11517581]
[1769494801627,0.011307,88550.0,88536.0,0.11517581]
[1769494804434,0.54012,88553.0,88539.0,0.11517581]
[1769494804821,0.011306,88554.0,88540.0,0.1631401]
[1769494805028,0.10176,88553.0,88541.0,0.11517581]
[1769494811234,0.113066,88553.0,88541.0,0.11517581]
[1769494811442,0.011307,88551.0,88541.0,0.11517581]
[1769494813638,0.011307,88549.0,88541.0,0.11517581]
[1769494814237,0.113066,88553.0,88541.0,0.11517581]
[1769494815828,0.011307,88551.0,88541.0,0.11517581]
[1769494816024,0.011307,88549.0,88541.0,0.11517581]
[1769494816236,0.011307,88549.0,88532.0,0.11517581]
[1769494817739,0.011307,88547.0,88532.0,0.11517581]
[1769494818640,0.011307,88548.0,88532.0,0.12648481]
[1769494818841,0.011307,88548.0,88532.0,0.11517581]
[1769494821740,0.011307,88546.0,88532.0,0.11517581]
[1769494822344,0.011307,88550.0,88532.0,0.11517581]
[1769494824439,0.011307,88550.0,88532.0,0.12648481]
[1769494827350,0.11698044,88552.0,88536.0,0.10892072]
[1769494827551,0.011307,88551.0,88536.0,0.10892072]
[1769494831141,0.011307,88549.0,88536.0,0.10892072]
[1769494836152,0.011307,88547.0,88536.0,0.10892072]
[1769494840449,0.011307,88550.0,88536.0,0.10892072]
[1769494845458,0.011307,88548.0,88536.0,0.10892072]
[1769494846460,0.113066,88552.0,88536.0,0.10892072]
[1769494849163,0.011307,88550.0,88536.0,0.10892072]
[1769494851760,0.10176,88552.0,88536.0,0.10892072]
[1769494851967,0.011307,88547.0,88536.0,0.10892072]
[1769494852765,0.12504998,88551.0,88536.0,0.10892072]
[1769494852960,0.011307,88549.0,88536.0,0.10892072]
[1769494855461,0.011307,88547.0,88536.0,0.10892072]
[1769494855660,0.11374298,88551.0,88536.0,0.10892072]
[1769494856163,0.10176,88552.0,88536.0,0.10892072]
[1769494856364,0.21213262,88552.0,88536.0,0.10892072]
[1769494856766,0.011307,88551.0,88536.0,0.10892072]
[1769494856969,0.011307,88548.0,88536.0,0.10892072]
[1769494859473,0.113067,88548.0,88536.0,0.10892072]
[1769494868281,0.10176,88548.0,88536.0,0.10892072]
[1769494874285,0.011307,88547.0,88536.0,0.10892072]
[1769494876984,0.10176,88548.0,88536.0,0.10892072]
[1769494877891,0.113067,88548.0,88536.0,0.10892072]
[1769494878792,0.011307,88545.0,88536.0,0.10892072]
[1769494891696,0.011307,88545.0,88528.0,5.9e-07]
[1769494891697,0.11110856,88539.0,88528.0,5.9e-07]
[1769494891901,0.11110856,88530.0,88518.0,2e-07]
[1769494892099,0.011311,88520.0,88507.0,0.19226561]
[1769494892288,0.011311,88520.0,88507.0,0.10176]
[1769494892600,0.01131,88524.0,88507.0,0.10176]
[1769494892795,0.01131,88524.0,88503.0,0.10181861]
[1769494892987,0.01131,88524.0,88506.0,0.10176]
[1769494893901,0.01131,88524.0,88513.0,0.11616869]
[1769494895093,0.11110856,88524.0,88513.0,4.9e-07]
[1769494895402,0.01131,88523.0,88513.0,4.9e-07]
[1769494895998,0.10176,88522.0,88513.0,4.9e-07]
[1769494896402,0.10176,88522.0,88513.0,0.10826069]
[1769494896597,0.10176,88524.0,88513.0,0.10826069]
[1769494900903,0.547,88530.0,88513.0,0.10826069]
[1769494901106,0.1018,88529.0,88513.0,0.10826069]
[1769494901508,0.01131,88528.0,88513.0,0.10826069]
[1769494908517,0.1018,88529.0,88515.0,0.1082602]
[1769494908705,0.113109,88529.0,88515.0,0.1082602]
[1769494908906,0.1018,88529.0,88515.0,0.1082602]
[1769494913619,0.1018,88529.0,88517.0,0.11572949]
[1769494914606,0.113109,88529.0,88517.0,0.11572949]
[1769494917516,0.1018,88529.0,88517.0,0.11572949]
[1769494917725,0.113109,88529.0,88517.0,0.11572949]
[1769494918623,0.1018,88529.0,88517.0,0.11572949]
[1769494920725,0.11235376,88547.0,88529.0,0.11572949]
[1769494920927,0.56568,88546.0,88531.0,0.11572949]
[1769494921517,0.56568,88546.0,88533.0,0.11572949]
[1769494921829,0.1018,88556.0,88540.0,0.011308]
[1769494922020,0.48312,88556.0,88540.0,0.17446382]
[1769494925337,0.011306,88555.0,88540.0,0.16315582]
[1769494932944,0.48312,88556.0,88540.0,0.16315582]
[1769494934234,0.011306,88555.0,88540.0,0.16315582]
[1769494935539,0.011306,88555.0,88537.0,0.011308]
[1769494938734,0.011306,88555.0,88530.0,0.1018]
[1769494938735,0.011306,88555.0,88539.0,0.011308]
[1769494940442,0.1018,88556.0,88537.0,0.10176]
[1769494940443,0.1018,88556.0,88541.0,0.011308]
[1769494941644,0.1018,88556.0,88537.0,0.10176]
[1769494941941,0.011306,88555.0,88540.0,0.011308]
[1769494950350,0.1018,88556.0,88540.0,0.011308]
[1769494951260,0.113106,88556.0,88540.0,0.011308]
[1769494952652,0.113106,88556.0,88542.0,0.011308]
[1769494953560,0.011306,88556.0,88537.0,0.10176]
[1769494955362,0.011306,88556.0,88540.0,0.011308]
[1769494955670,0.12,88557.0,88540.0,0.011308]
[1769494955856,0.131306,88557.0,88542.0,0.011308]